[Event "Live Chess"]
[Site "Chess.com"]
[Date "2024.06.01"]
[Round "-"]
[White "Queensandpawns"]
[Black "Duke_of_Bebington"]
[Result "1-0"]
[WhiteElo "2443"]
[BlackElo "1628"]
[TimeControl "300"]
[EndTime "11:09:54 PDT"]
[Termination "Queensandpawns won by resignation"]

1. e4 {[%clk 0:04:59.3]} 1... e5 {[%clk 0:04:58.6]} 2. d4 {[%clk 0:04:58]} 2...
exd4 {[%clk 0:04:57.1]} 3. c3 {[%clk 0:04:57.9]} 3... d5 {[%clk 0:04:55.7]} 4.
e5 {[%clk 0:04:56.1]} 4... dxc3 {[%clk 0:04:44.1]} 5. Nxc3 {[%clk 0:04:56]} 5...
Bb4 {[%clk 0:04:42.2]} 6. Nf3 {[%clk 0:04:51]} 6... Nc6 {[%clk 0:04:35.7]} 7.
Bg5 {[%clk 0:04:43.2]} 7... f6 {[%clk 0:04:28.1]} 8. exf6 {[%clk 0:04:43.1]}
8... Nxf6 {[%clk 0:04:27.4]} 9. Bb5 {[%clk 0:04:39.8]} 9... O-O {[%clk
0:04:10.1]} 10. O-O {[%clk 0:04:35.1]} 10... Bg4 {[%clk 0:04:04.6]} 11. h3
{[%clk 0:04:20.1]} 11... Bxf3 {[%clk 0:03:56]} 12. Qxf3 {[%clk 0:04:20]} 12...
Bxc3 {[%clk 0:03:51.2]} 13. Qxc3 {[%clk 0:04:18.2]} 13... Ne4 {[%clk 0:03:46.3]}
14. Bxd8 {[%clk 0:04:09.2]} 14... Nxc3 {[%clk 0:03:45.3]} 15. Bxc6 {[%clk
0:03:59]} 15... bxc6 {[%clk 0:03:24.3]} 16. Bxc7 {[%clk 0:03:57.6]} 16... Ne2+
{[%clk 0:03:21.9]} 17. Kh2 {[%clk 0:03:56.9]} 17... Rac8 {[%clk 0:03:18.6]} 18.
Bd6 {[%clk 0:03:53.1]} 18... Rf6 {[%clk 0:03:14.2]} 19. Bc5 {[%clk 0:03:52]}
19... Nf4 {[%clk 0:03:11.1]} 20. Rad1 {[%clk 0:03:48.1]} 20... Ne6 {[%clk
0:03:07.3]} 21. Bxa7 {[%clk 0:03:39.4]} 21... Ra8 {[%clk 0:03:06.4]} 22. Bd4
{[%clk 0:03:35.2]} 22... Nxd4 {[%clk 0:03:04.2]} 23. Rxd4 {[%clk 0:03:35.1]}
23... Rxa2 {[%clk 0:03:03]} 24. Rb4 {[%clk 0:03:32.9]} 24... c5 {[%clk
0:02:53.4]} 25. Rb5 {[%clk 0:03:31.9]} 25... Rc6 {[%clk 0:02:48.2]} 26. Rc1
{[%clk 0:03:30.3]} 26... d4 {[%clk 0:02:43.8]} 27. Kg3 {[%clk 0:03:25.2]} 27...
Kf7 {[%clk 0:02:41.2]} 28. b4 {[%clk 0:03:23.9]} 28... c4 {[%clk 0:02:38.6]} 29.
Rd5 {[%clk 0:03:20.2]} 29... d3 {[%clk 0:02:34.1]} 30. Rxd3 {[%clk 0:03:14.3]}
30... cxd3 {[%clk 0:02:30.2]} 31. Rxc6 {[%clk 0:03:13]} 31... Ke7 {[%clk
0:02:20.6]} 32. Rc4 {[%clk 0:02:55.3]} 32... Rb2 {[%clk 0:02:05.8]} 33. Rd4
{[%clk 0:02:50.5]} 33... d2 {[%clk 0:02:03.6]} 34. Kf3 {[%clk 0:02:49]} 34...
Ke6 {[%clk 0:02:03.2]} 35. Ke2 {[%clk 0:02:48]} 35... Ke5 {[%clk 0:02:02.2]} 36.
Rxd2 {[%clk 0:02:47.1]} 36... Rxb4 {[%clk 0:02:01.1]} 37. Rd7 {[%clk 0:02:46]}
37... Kf6 {[%clk 0:01:59.2]} 38. Kf3 {[%clk 0:02:44.2]} 38... Rb3+ {[%clk
0:01:55.6]} 39. Kg4 {[%clk 0:02:42.9]} 39... Rb4+ {[%clk 0:01:55]} 40. f4 {[%clk
0:02:42]} 40... h5+ {[%clk 0:01:51.7]} 41. Kg3 {[%clk 0:02:34.8]} 41... g6
{[%clk 0:01:45.8]} 42. Rd6+ {[%clk 0:02:31]} 42... Kf5 {[%clk 0:01:44.6]} 43.
Rd5+ {[%clk 0:02:29.3]} 43... Kf6 {[%clk 0:01:43.6]} 44. Ra5 {[%clk 0:02:27]}
44... Rb3+ {[%clk 0:01:39.9]} 45. Kh4 {[%clk 0:02:26]} 45... Rb2 {[%clk
0:01:36.9]} 46. g3 {[%clk 0:02:24.1]} 46... Rb6 {[%clk 0:01:33.5]} 47. Rc5
{[%clk 0:02:20.5]} 47... Re6 {[%clk 0:01:31.5]} 48. Re5 {[%clk 0:02:14.8]} 48...
Rd6 {[%clk 0:01:27.6]} 49. Re8 {[%clk 0:02:11.2]} 49... Kf7 {[%clk 0:01:25.4]}
50. Ra8 {[%clk 0:02:09.4]} 50... Rd7 {[%clk 0:01:24]} 51. g4 {[%clk 0:02:06.6]}
51... hxg4 {[%clk 0:01:22.5]} 52. hxg4 {[%clk 0:02:05.7]} 52... Rd1 {[%clk
0:01:19.5]} 53. Ra6 {[%clk 0:02:01.5]} 53... Rd8 {[%clk 0:01:13.1]} 54. Rc6
{[%clk 0:01:49.4]} 54... Rg8 {[%clk 0:01:12.4]} 55. Kg5 {[%clk 0:01:48.1]} 55...
Rg7 {[%clk 0:01:10.8]} 56. Rc7+ {[%clk 0:01:46.9]} 56... Kf8 {[%clk 0:01:09.4]}
57. Rc6 {[%clk 0:01:21.6]} 57... Kf7 {[%clk 0:01:07.7]} 58. Rf6+ {[%clk
0:01:20]} 58... Ke7 {[%clk 0:01:02.9]} 59. Rxg6 {[%clk 0:01:19.9]} 59... Rf7
{[%clk 0:01:01.2]} 60. f5 {[%clk 0:01:19.2]} 60... Ke8 {[%clk 0:00:58.4]} 61.
Re6+ {[%clk 0:01:17.1]} 61... Kf8 {[%clk 0:00:57.3]} 62. Rf6 {[%clk 0:01:15.5]}
62... Rxf6 {[%clk 0:00:56.5]} 63. Kxf6 {[%clk 0:01:15.4]} 63... Kg8 {[%clk
0:00:55.6]} 64. g5 {[%clk 0:01:15.2]} 64... Kf8 {[%clk 0:00:55]} 65. g6 {[%clk
0:01:15.1]} 65... Kg8 {[%clk 0:00:54.7]} 66. Ke7 {[%clk 0:01:14.2]} 66... Kg7
{[%clk 0:00:53.8]} 67. f6+ {[%clk 0:01:13.8]} 67... Kxg6 {[%clk 0:00:53.3]} 68.
f7 {[%clk 0:01:13.7]} 68... Kg7 {[%clk 0:00:52.9]} 69. f8=Q+ {[%clk 0:01:13.3]}
69... Kh7 {[%clk 0:00:51.8]} 70. Qf1 {[%clk 0:01:13.2]} 70... Kg6 {[%clk
0:00:51]} 71. Qf4 {[%clk 0:01:11.9]} 1-0

[Event "Live Chess"]
[Site "Chess.com"]
[Date "2024.06.01"]
[Round "-"]
[White "febray_27"]
[Black "ProfPoisson"]
[Result "1-0"]
[WhiteElo "1987"]
[BlackElo "1239"]
[TimeControl "300"]
[EndTime "11:10:03 PDT"]
[Termination "febray_27 won by checkmate"]

1. Nf3 {[%clk 0:04:57.4]} 1... f5 {[%clk 0:04:55.5]} 2. d4 {[%clk 0:04:56.4]}
2... e6 {[%clk 0:04:53.3]} 3. g3 {[%clk 0:04:55.8]} 3... Nf6 {[%clk 0:04:51]} 4.
Bg2 {[%clk 0:04:55.3]} 4... Be7 {[%clk 0:04:49.5]} 5. O-O {[%clk 0:04:54.9]}
5... d6 {[%clk 0:04:48.2]} 6. c4 {[%clk 0:04:54.4]} 6... O-O {[%clk 0:04:46.9]}
7. Nc3 {[%clk 0:04:53.8]} 7... Ne4 {[%clk 0:04:44.6]} 8. Qc2 {[%clk 0:04:50.6]}
8... Nxc3 {[%clk 0:04:42.4]} 9. Qxc3 {[%clk 0:04:49.7]} 9... a5 {[%clk
0:04:39.5]} 10. b3 {[%clk 0:04:48.2]} 10... Bf6 {[%clk 0:04:37.9]} 11. Bb2
{[%clk 0:04:47.1]} 11... c5 {[%clk 0:04:24.1]} 12. e3 {[%clk 0:04:45.1]} 12...
Nc6 {[%clk 0:04:14.9]} 13. Rfd1 {[%clk 0:04:39.3]} 13... Qe8 {[%clk 0:04:04.3]}
14. Qd2 {[%clk 0:04:38.2]} 14... e5 {[%clk 0:03:55.4]} 15. dxe5 {[%clk
0:04:34.6]} 15... dxe5 {[%clk 0:03:54.1]} 16. Qd5+ {[%clk 0:04:28.5]} 16... Kh8
{[%clk 0:03:46.4]} 17. Qxc5 {[%clk 0:04:27.3]} 17... Nb4 {[%clk 0:03:41.1]} 18.
a3 {[%clk 0:04:24.2]} 18... Nc6 {[%clk 0:03:33]} 19. Rd2 {[%clk 0:04:05.5]}
19... Be7 {[%clk 0:03:28.5]} 20. Qd5 {[%clk 0:03:54.9]} 20... Rf6 {[%clk
0:03:20.6]} 21. Nxe5 {[%clk 0:03:41.7]} 21... Nxe5 {[%clk 0:03:12.8]} 22. Bxe5
{[%clk 0:03:38]} 22... Be6 {[%clk 0:03:06.5]} 23. Qxb7 {[%clk 0:03:26.7]} 23...
Rg6 {[%clk 0:03:02.6]} 24. Qxa8 {[%clk 0:03:24.6]} 24... Qxa8 {[%clk 0:02:56.4]}
25. Bxa8 {[%clk 0:03:24.5]} 25... f4 {[%clk 0:02:50.8]} 26. exf4 {[%clk
0:03:20.9]} 26... h5 {[%clk 0:02:44]} 27. Be4 {[%clk 0:03:19.7]} 27... Rh6
{[%clk 0:02:36.3]} 28. Rad1 {[%clk 0:03:17.9]} 28... h4 {[%clk 0:02:31.9]} 29.
f5 {[%clk 0:03:11.3]} 29... hxg3 {[%clk 0:02:25.7]} 30. fxe6 {[%clk 0:03:03.9]}
30... gxf2+ {[%clk 0:02:19.2]} 31. Kxf2 {[%clk 0:02:58.2]} 31... Bc5+ {[%clk
0:02:14.2]} 32. Kg2 {[%clk 0:02:56]} 32... Rxe6 {[%clk 0:02:08]} 33. Rd8+ {[%clk
0:02:51.9]} 33... Re8 {[%clk 0:02:02.9]} 34. Rxe8+ {[%clk 0:02:51]} 34... Bf8
{[%clk 0:02:01.8]} 35. Rxf8# {[%clk 0:02:50.5]} 1-0

[Event "Live Chess"]
[Site "Chess.com"]
[Date "2024.06.01"]
[Round "-"]
[White "Golden_Plans"]
[Black "Sokolik_UA"]
[Result "1-0"]
[WhiteElo "2253"]
[BlackElo "804"]
[TimeControl "300"]
[EndTime "11:10:27 PDT"]
[Termination "Golden_Plans won by checkmate"]

1. d4 {[%clk 0:04:57.4]} 1... d6 {[%clk 0:04:59.3]} 2. Nc3 {[%clk 0:04:55.3]}
2... e5 {[%clk 0:04:58]} 3. Nf3 {[%clk 0:04:53.8]} 3... exd4 {[%clk 0:04:56.5]}
4. Bg5 {[%clk 0:04:51.7]} 4... Nf6 {[%clk 0:04:52.4]} 5. Qxd4 {[%clk 0:04:50.5]}
5... Be7 {[%clk 0:04:50.4]} 6. O-O-O {[%clk 0:04:47.9]} 6... O-O {[%clk
0:04:49.4]} 7. e3 {[%clk 0:04:46.2]} 7... Nc6 {[%clk 0:04:49]} 8. Qh4 {[%clk
0:04:44.8]} 8... h6 {[%clk 0:04:44.4]} 9. Bd3 {[%clk 0:04:44.3]} 9... hxg5
{[%clk 0:04:42]} 10. Nxg5 {[%clk 0:04:43.6]} 10... Bf5 {[%clk 0:04:37.2]} 11.
Bxf5 {[%clk 0:04:42.1]} 11... Ne5 {[%clk 0:04:36.2]} 12. Bh7+ {[%clk 0:04:39.7]}
12... Nxh7 {[%clk 0:04:34.5]} 13. Qxh7# {[%clk 0:04:38.9]} 1-0

[Event "Live Chess"]
[Site "Chess.com"]
[Date "2024.06.01"]
[Round "-"]
[White "Mangoalo"]
[Black "dhairyapandyauk"]
[Result "0-1"]
[WhiteElo "1009"]
[BlackElo "1743"]
[TimeControl "300"]
[EndTime "11:10:36 PDT"]
[Termination "dhairyapandyauk won by resignation"]

1. e4 {[%clk 0:04:58]} 1... e5 {[%clk 0:04:59.3]} 2. Nf3 {[%clk 0:04:57.9]} 2...
Nc6 {[%clk 0:04:57.8]} 3. d4 {[%clk 0:04:54.7]} 3... exd4 {[%clk 0:04:54.9]} 4.
Nxd4 {[%clk 0:04:53.5]} 4... Nxd4 {[%clk 0:04:54.1]} 5. Qxd4 {[%clk 0:04:53.2]}
5... d6 {[%clk 0:04:53.7]} 6. Nc3 {[%clk 0:04:51.2]} 6... Be6 {[%clk 0:04:50.4]}
7. Bc4 {[%clk 0:04:45.7]} 7... Qf6 {[%clk 0:04:41.2]} 8. Qxf6 {[%clk 0:04:41.8]}
8... Nxf6 {[%clk 0:04:40.7]} 9. Bxe6 {[%clk 0:04:39.6]} 9... fxe6 {[%clk
0:04:40.3]} 10. O-O {[%clk 0:04:38.8]} 10... Be7 {[%clk 0:04:39.4]} 11. Bg5
{[%clk 0:04:37.5]} 11... h6 {[%clk 0:04:35.7]} 12. Bxf6 {[%clk 0:04:36.4]} 12...
Bxf6 {[%clk 0:04:35.2]} 13. Rad1 {[%clk 0:04:32.8]} 13... Bxc3 {[%clk
0:04:33.2]} 14. bxc3 {[%clk 0:04:31.4]} 14... Kd7 {[%clk 0:04:32.4]} 15. Rd3
{[%clk 0:04:28]} 15... e5 {[%clk 0:04:30.8]} 16. Rfd1 {[%clk 0:04:26.6]} 16...
Ke6 {[%clk 0:04:30.1]} 17. g4 {[%clk 0:04:24.3]} 17... Rhf8 {[%clk 0:04:25.6]}
18. Kg2 {[%clk 0:04:23.3]} 18... Rf4 {[%clk 0:04:24.1]} 19. f3 {[%clk
0:04:21.6]} 19... Raf8 {[%clk 0:04:22.1]} 20. h4 {[%clk 0:04:15.9]} 20... h5
{[%clk 0:04:20.6]} 21. g5 {[%clk 0:04:13.4]} 21... Rxh4 {[%clk 0:04:18.8]} 22.
Kg3 {[%clk 0:04:11.3]} 22... Rhf4 {[%clk 0:04:17.2]} 23. Rf1 {[%clk 0:04:09.2]}
23... h4+ {[%clk 0:04:16.3]} 24. Kh3 {[%clk 0:04:06.4]} 24... Kf7 {[%clk
0:04:12.6]} 25. c4 {[%clk 0:04:02.6]} 25... Kg6 {[%clk 0:04:11.7]} 26. a4 {[%clk
0:04:01.1]} 26... Rxe4 {[%clk 0:04:10.4]} 27. Rg1 {[%clk 0:04:01]} 27... Rxc4
{[%clk 0:04:06.8]} 0-1

[Event "Live Chess"]
[Site "Chess.com"]
[Date "2024.06.01"]
[Round "-"]
[White "RamsayFlayer"]
[Black "NeilDruggan73"]
[Result "1-0"]
[WhiteElo "1961"]
[BlackElo "1711"]
[TimeControl "300"]
[EndTime "11:10:41 PDT"]
[Termination "RamsayFlayer won by resignation"]

1. e4 {[%clk 0:04:58.3]} 1... d6 {[%clk 0:04:57.8]} 2. d4 {[%clk 0:04:56]} 2...
Nf6 {[%clk 0:04:56.5]} 3. Nc3 {[%clk 0:04:55.5]} 3... Bg4 {[%clk 0:04:53.8]} 4.
Be2 {[%clk 0:04:48.8]} 4... Bxe2 {[%clk 0:04:52.4]} 5. Qxe2 {[%clk 0:04:48.7]}
5... g6 {[%clk 0:04:51.3]} 6. Nf3 {[%clk 0:04:47.6]} 6... Bg7 {[%clk 0:04:50.6]}
7. Bf4 {[%clk 0:04:42.1]} 7... b6 {[%clk 0:04:49.8]} 8. O-O-O {[%clk 0:04:39.3]}
8... Nh5 {[%clk 0:04:44.9]} 9. Bg5 {[%clk 0:04:32.6]} 9... h6 {[%clk 0:04:43]}
10. Be3 {[%clk 0:04:29.4]} 10... Nf6 {[%clk 0:04:41]} 11. h3 {[%clk 0:04:25]}
11... c5 {[%clk 0:04:39.5]} 12. g4 {[%clk 0:04:20.2]} 12... Qc7 {[%clk
0:04:28.2]} 13. Bf4 {[%clk 0:04:16.9]} 13... g5 {[%clk 0:04:19.8]} 14. Bg3
{[%clk 0:04:13.7]} 14... Nc6 {[%clk 0:04:16.9]} 15. e5 {[%clk 0:04:05.7]} 15...
dxe5 {[%clk 0:04:13.2]} 16. dxe5 {[%clk 0:04:01.3]} 16... Ng8 {[%clk 0:03:56.7]}
17. e6 {[%clk 0:03:58]} 17... Qb7 {[%clk 0:03:50.8]} 18. exf7+ {[%clk
0:03:54.8]} 18... Kxf7 {[%clk 0:03:50.3]} 19. Qc4+ {[%clk 0:03:44.4]} 19... e6
{[%clk 0:03:47.3]} 20. Rhe1 {[%clk 0:03:39.1]} 20... Re8 {[%clk 0:03:43.3]} 21.
Ne4 {[%clk 0:03:32.8]} 21... Kg6 {[%clk 0:03:17.5]} 22. Nd6 {[%clk 0:03:25.3]}
22... Qa8 {[%clk 0:03:09.3]} 23. Nxe8 {[%clk 0:03:23]} 23... Qxe8 {[%clk
0:03:08.9]} 24. Rxe6+ {[%clk 0:03:21]} 1-0

[Event "Live Chess"]
[Site "Chess.com"]
[Date "2024.06.01"]
[Round "-"]
[White "yarek"]
[Black "Brooms1989"]
[Result "1-0"]
[WhiteElo "1718"]
[BlackElo "1069"]
[TimeControl "300"]
[EndTime "11:10:53 PDT"]
[Termination "yarek won by resignation"]

1. e4 {[%clk 0:04:56.9]} 1... e5 {[%clk 0:04:57.7]} 2. d4 {[%clk 0:04:55.6]}
2... exd4 {[%clk 0:04:56]} 3. Qxd4 {[%clk 0:04:55.5]} 3... Nc6 {[%clk
0:04:54.6]} 4. Qe3 {[%clk 0:04:54.7]} 4... Nf6 {[%clk 0:04:48]} 5. Nc3 {[%clk
0:04:53.8]} 5... Be7 {[%clk 0:04:43.8]} 6. Bd2 {[%clk 0:04:53.2]} 6... O-O
{[%clk 0:04:42.5]} 7. O-O-O {[%clk 0:04:52.6]} 7... d6 {[%clk 0:04:32]} 8. Bc4
{[%clk 0:04:50.1]} 8... Ne5 {[%clk 0:04:26.3]} 9. Bb3 {[%clk 0:04:47.6]} 9... c5
{[%clk 0:04:19]} 10. Bd5 {[%clk 0:04:32.4]} 10... Nxd5 {[%clk 0:04:14.2]} 11.
Nxd5 {[%clk 0:04:28.6]} 11... Be6 {[%clk 0:03:58.7]} 12. Bc3 {[%clk 0:04:16.6]}
12... b5 {[%clk 0:03:46.8]} 13. f4 {[%clk 0:04:04.6]} 13... Nc4 {[%clk
0:03:24.5]} 14. Qf3 {[%clk 0:03:41.4]} 14... Bxd5 {[%clk 0:03:10.3]} 15. Rxd5
{[%clk 0:03:33.5]} 15... Qa5 {[%clk 0:03:07.1]} 16. Bxa5 {[%clk 0:03:29.5]} 1-0

[Event "Live Chess"]
[Site "Chess.com"]
[Date "2024.06.01"]
[Round "-"]
[White "JanMur7"]
[Black "Kyrylo7770"]
[Result "1-0"]
[WhiteElo "2294"]
[BlackElo "1684"]
[TimeControl "300"]
[EndTime "11:11:05 PDT"]
[Termination "JanMur7 won by checkmate"]

1. c4 {[%clk 0:04:57.8]} 1... c6 {[%clk 0:04:59]} 2. Nc3 {[%clk 0:04:57.4]} 2...
d5 {[%clk 0:04:58.7]} 3. d4 {[%clk 0:04:56.9]} 3... Nf6 {[%clk 0:04:58.4]} 4.
Nf3 {[%clk 0:04:55.7]} 4... Bf5 {[%clk 0:04:57.9]} 5. Qb3 {[%clk 0:04:53.7]}
5... b6 {[%clk 0:04:56.8]} 6. cxd5 {[%clk 0:04:52.1]} 6... Nxd5 {[%clk
0:04:55.8]} 7. Nxd5 {[%clk 0:04:48.8]} 7... Be6 {[%clk 0:04:52.5]} 8. e4 {[%clk
0:04:41.3]} 8... cxd5 {[%clk 0:04:51.4]} 9. Bb5+ {[%clk 0:04:37.2]} 9... Bd7
{[%clk 0:04:47.7]} 10. Qxd5 {[%clk 0:04:33.9]} 10... e6 {[%clk 0:04:43.3]} 11.
Bxd7+ {[%clk 0:04:21.5]} 11... Nxd7 {[%clk 0:04:42.3]} 12. Qb5 {[%clk
0:04:20.9]} 12... Rc8 {[%clk 0:04:40.8]} 13. Ne5 {[%clk 0:04:19]} 13... Bd6
{[%clk 0:04:37.5]} 14. Qxd7+ {[%clk 0:04:17.6]} 14... Qxd7 {[%clk 0:04:36.6]}
15. Nxd7 {[%clk 0:04:17.5]} 15... Kxd7 {[%clk 0:04:36]} 16. Bd2 {[%clk
0:04:12.1]} 16... a5 {[%clk 0:04:33.5]} 17. Bc3 {[%clk 0:04:05.9]} 17... Bf4
{[%clk 0:04:29.3]} 18. g3 {[%clk 0:04:03.5]} 18... Bh6 {[%clk 0:04:27.7]} 19.
O-O {[%clk 0:04:02.4]} 19... g6 {[%clk 0:04:26.7]} 20. d5 {[%clk 0:03:59.7]}
20... Rhg8 {[%clk 0:04:25.4]} 21. dxe6+ {[%clk 0:03:57.7]} 21... Kxe6 {[%clk
0:04:25]} 22. Rad1 {[%clk 0:03:57.2]} 22... Rc4 {[%clk 0:04:22.6]} 23. f3 {[%clk
0:03:53.5]} 23... Be3+ {[%clk 0:04:20.9]} 24. Kg2 {[%clk 0:03:52.5]} 24... Rgc8
{[%clk 0:04:19.4]} 25. Rd5 {[%clk 0:03:51]} 25... Bc5 {[%clk 0:04:17.7]} 26.
Rfd1 {[%clk 0:03:49.1]} 26... Ra4 {[%clk 0:04:16.9]} 27. Re5+ {[%clk 0:03:33.3]}
27... Kf6 {[%clk 0:04:11.5]} 28. Rxc5+ {[%clk 0:03:32.2]} 28... Ke7 {[%clk
0:04:07.4]} 29. Rxc8 {[%clk 0:03:31]} 29... Rxa2 {[%clk 0:04:05.5]} 30. Rc7+
{[%clk 0:03:30.1]} 30... Kf8 {[%clk 0:04:03.6]} 31. Rd8# {[%clk 0:03:27.9]} 1-0

[Event "Live Chess"]
[Site "Chess.com"]
[Date "2024.06.01"]
[Round "-"]
[White "vincents82"]
[Black "Cruiseylee78"]
[Result "0-1"]
[WhiteElo "2112"]
[BlackElo "1704"]
[TimeControl "300"]
[EndTime "11:11:13 PDT"]
[Termination "Cruiseylee78 won by resignation"]

1. e4 {[%clk 0:04:54.2]} 1... d6 {[%clk 0:04:59.3]} 2. d4 {[%clk 0:04:52.7]}
2... Nd7 {[%clk 0:04:58.4]} 3. Nc3 {[%clk 0:04:52]} 3... e5 {[%clk 0:04:57.6]}
4. Nf3 {[%clk 0:04:50.9]} 4... Ngf6 {[%clk 0:04:55.9]} 5. Be2 {[%clk 0:04:46]}
5... c6 {[%clk 0:04:55.6]} 6. h3 {[%clk 0:04:44.9]} 6... Be7 {[%clk 0:04:54.8]}
7. Be3 {[%clk 0:04:44.2]} 7... h6 {[%clk 0:04:54.1]} 8. Qd2 {[%clk 0:04:43.4]}
8... Qc7 {[%clk 0:04:51.4]} 9. O-O-O {[%clk 0:04:41.5]} 9... b5 {[%clk
0:04:50.3]} 10. dxe5 {[%clk 0:04:39]} 10... dxe5 {[%clk 0:04:49.3]} 11. Bd3
{[%clk 0:04:35.3]} 11... a5 {[%clk 0:04:46.8]} 12. Nh4 {[%clk 0:04:29.2]} 12...
Nc5 {[%clk 0:04:40.9]} 13. Nf5 {[%clk 0:04:25.1]} 13... Bxf5 {[%clk 0:04:39.8]}
14. exf5 {[%clk 0:04:24.1]} 14... Nxd3+ {[%clk 0:04:37.6]} 15. Qxd3 {[%clk
0:04:22.4]} 15... b4 {[%clk 0:04:36.8]} 16. Qe4 {[%clk 0:04:17.7]} 16... bxc3
{[%clk 0:04:28]} 0-1

[Event "Live Chess"]
[Site "Chess.com"]
[Date "2024.06.01"]
[Round "-"]
[White "Duke_of_Bebington"]
[Black "KeithArkell"]
[Result "0-1"]
[WhiteElo "1628"]
[BlackElo "2518"]
[TimeControl "300"]
[EndTime "11:11:31 PDT"]
[Termination "KeithArkell won by resignation"]

1. e4 {[%clk 0:04:58]} 1... c6 {[%clk 0:04:59.2]} 2. d4 {[%clk 0:04:56.6]} 2...
d5 {[%clk 0:04:58.6]} 3. e5 {[%clk 0:04:56.1]} 3... c5 {[%clk 0:04:58]} 4. c3
{[%clk 0:04:53.8]} 4... cxd4 {[%clk 0:04:56.7]} 5. cxd4 {[%clk 0:04:53.1]} 5...
Nc6 {[%clk 0:04:56]} 6. Nf3 {[%clk 0:04:52]} 6... Bg4 {[%clk 0:04:54.5]} 7. Be2
{[%clk 0:04:50.3]} 7... Bxf3 {[%clk 0:04:53.1]} 8. Bxf3 {[%clk 0:04:48.4]} 8...
e6 {[%clk 0:04:52.7]} 9. O-O {[%clk 0:04:46.8]} 9... Qb6 {[%clk 0:04:48.9]} 10.
Be3 {[%clk 0:04:29.1]} 10... Nge7 {[%clk 0:04:45.3]} 11. Qb3 {[%clk 0:04:14.2]}
11... Qxb3 {[%clk 0:04:40.4]} 12. axb3 {[%clk 0:04:13.7]} 12... Nf5 {[%clk
0:04:39.5]} 13. Nc3 {[%clk 0:04:11.4]} 13... Nfxd4 {[%clk 0:04:38]} 14. Bxd4
{[%clk 0:04:09.7]} 14... Nxd4 {[%clk 0:04:37.2]} 15. Nb5 {[%clk 0:04:05.9]}
15... Nxb5 {[%clk 0:04:36]} 0-1